bitfinex/quotes_SOLUSD_20250307
["timestamp","ask_amount","ask_price","bid_price","bid_amount"]
[1741325718443,0.03,142.87,142.86,341.49245291]
[1741325718634,0.03,142.87,142.86,319.14196157]
[1741325719156,0.03,142.89,142.87,0.28432314]
[1741325719451,0.03,142.94,142.87,0.28432314]
[1741325719452,0.03,142.94,142.91,18.79181043]
[1741325719650,0.03,142.94,142.93,22.49265291]
[1741325719830,0.03,142.94,142.93,0.14216157]
[1741325720648,2.03,142.94,142.93,0.14216157]
[1741325721440,0.03,142.94,142.93,0.14216157]
[1741325721649,0.03,142.94,142.93,29.48905291]
[1741325722460,0.03,142.94,142.93,341.48905291]
[1741325723351,82.0,142.99,142.94,0.14216157]
[1741325723558,0.03,143.0,142.98,0.14216157]
[1741325723738,0.0001,143.0,142.99,28.97265291]
[1741325723935,0.03,143.04,143.0,18.933972]
[1741325724144,0.0001,143.04,143.03,41.14230177]
[1741325724450,0.0001,143.04,143.03,50.67868075]
[1741325724754,0.0001,143.04,143.03,28.32818941]
[1741325725252,2.0001,143.04,143.03,0.14216157]
[1741325726558,2.0001,143.04,143.03,312.14216157]
[1741325728762,8.9911,143.04,142.97,50.74976153]
[1741325728957,2.0,142.99,142.97,0.21324235]
[1741325729130,2.0,143.01,142.98,0.14216157]
[1741325729332,2.0,143.02,142.98,0.14216157]
[1741325729662,2.0,143.01,142.97,28.39927019]
[1741325729836,2.0,142.99,142.97,28.39927019]
[1741325730036,2.0,143.01,142.97,41.21338255]
[1741325730243,2.0,143.01,142.98,0.14216157]
[1741325730443,2.0,143.0,142.97,0.21324235]
[1741325730759,2.0,143.0,142.98,0.14216157]
[1741325730946,2.0,143.01,142.98,0.14216157]
[1741325731440,2.0,143.0,142.98,0.14216157]
[1741325731641,2.0,143.0,142.99,312.14216157]
[1741325732151,2.0,143.01,143.0,0.14216157]
[1741325732355,2.0,143.01,142.97,0.21324235]
[1741325732553,2.0,143.0,142.98,0.14216157]
[1741325732737,2.0,142.99,142.98,0.14216157]
[1741325733047,2.0,142.98,142.97,0.21324235]
[1741325733245,2.0,142.98,142.97,0.35540392]
[1741325733471,2.0,142.99,142.98,0.14216157]
[1741325733667,8.9934,142.99,142.98,0.14216157]
[1741325734167,2.0,142.96,142.95,28.18602784]
[1741325734466,2.0,142.95,142.94,166.64]
[1741325734644,2.0,142.96,142.95,0.14216157]
[1741325735258,2.0,142.96,142.95,312.14216157]
[1741325735641,8.9949,142.96,142.95,312.14216157]
[1741325736165,8.9949,142.96,142.95,0.14216157]
[1741325736364,2.0,142.95,142.94,166.64]
[1741325736738,2.0,142.9,142.87,57.53561918]
[1741325736933,2.0,142.9,142.87,50.53651918]
[1741325737152,2.0,142.9,142.88,0.14216157]
[1741325737357,2.0,142.89,142.87,28.18602784]
[1741325737570,2.0,142.88,142.87,0.14216157]
[1741325737870,2.0,142.87,142.86,28.39927019]
[1741325738041,2.0,142.87,142.86,0.21324235]
[1741325739074,2.0,142.83,142.81,22.35049134]
[1741325739374,2.0,142.83,142.82,312.14216157]
[1741325739560,2.0,142.84,142.83,0.14216157]
[1741325739876,2.0,142.84,142.81,29.35269134]
[1741325740075,2.0,142.83,142.81,29.35269134]
[1741325740269,2.0,142.83,142.82,0.14216157]
[1741325741061,2.0,142.83,142.81,42.75907677]
[1741325741275,2.0,142.82,142.79,46.8356767]
[1741325741583,2.0,142.81,142.79,63.94290461]
[1741325741880,2.0,142.79,142.78,0.033]
[1741325742173,2.0,142.82,142.78,25.82851043]
[1741325742375,2.0,142.82,142.8,0.14216157]
[1741325742551,2.0,142.83,142.8,0.14216157]
[1741325742752,2.0,142.83,142.82,312.14216157]
[1741325742950,2.0,142.85,142.83,0.14216157]
[1741325743258,0.14216157,142.85,142.82,35.75687677]
[1741325743459,2.0,142.86,142.78,0.033]
[1741325743460,2.0,142.8,142.78,0.033]
[1741325743668,2.0,142.8,142.78,7.0367]
[1741325743977,2.0,142.8,142.79,0.14216157]
[1741325744155,2.0,142.8,142.78,0.033]
[1741325744556,2.0,142.79,142.78,0.033]
[1741325744750,2.0,142.79,142.78,0.17516157]
[1741325746279,2.0,142.79,142.78,312.033]
[1741325746579,2.0,142.79,142.78,319.0367]
[1741325746780,2.0,142.79,142.78,326.68211042]
[1741325746980,2.0,142.8,142.79,0.14216157]
[1741325747277,2.0,142.82,142.79,46.97783827]
[1741325747483,2.0,142.85,142.82,0.14216157]
[1741325747663,2.0,142.85,142.82,35.89903834]
[1741325748183,2.0,142.85,142.84,0.14216157]
[1741325749586,2.0,142.85,142.84,35.89903834]
[1741325750085,2.0,142.85,142.84,0.14216157]
[1741325750284,2.0,142.85,142.84,319.14296157]
[1741325750865,2.0,142.85,142.84,312.14216157]
[1741325751674,2.0,142.85,142.84,312.0]
[1741325751871,2.0,142.85,142.84,312.14216157]
[1741325752072,9.0003,142.85,142.84,312.14216157]
[1741325752702,9.0003,142.85,142.84,0.14216157]
[1741325753083,2.0,142.8,142.78,35.22262784]
[1741325753277,2.0,142.79,142.78,7.0366]
[1741325753786,82.0,142.84,142.79,0.14216157]
[1741325754297,89.0009,142.84,142.79,0.14216157]
[1741325755097,82.0,142.84,142.8,0.14216157]
[1741325755677,82.0,142.84,142.79,25.65284886]
[1741325755678,82.0,142.84,142.83,312.14216157]
[1741325756016,7.0008,142.85,142.84,0.14216157]
[1741325756185,7.94952173,142.87,142.84,0.14216157]
[1741325756512,13.2424,142.85,142.79,0.14216157]
[1741325756807,96.71192173,142.85,142.79,0.14216157]
[1741325757178,82.0,142.85,142.81,0.14216157]
[1741325758084,82.0,142.85,142.8,0.14216157]
[1741325758511,82.0,142.88,142.8,42.90153834]
[1741325759006,88.9992,142.88,142.8,42.90153834]
[1741325759303,0.14216157,142.87,142.8,35.33068941]
[1741325759496,1.6116833,142.87,142.84,0.14216157]
[1741325759699,83.6116833,142.87,142.84,0.14216157]
[1741325760096,83.6116833,142.87,142.78,63.97590461]
[1741325760300,82.0,142.86,142.79,42.76007677]
[1741325760482,82.0,142.86,142.82,0.14216157]
[1741325760888,88.9999,142.86,142.82,0.14216157]
[1741325761082,88.9999,142.86,142.81,0.14216157]
[1741325761288,82.0,142.86,142.81,0.14216157]
[1741325761691,1.6116833,142.85,142.79,0.14216157]
[1741325761892,82.0,142.84,142.79,0.14216157]
[1741325762314,82.0,142.84,142.79,22.49423131]
[1741325762615,82.0,142.84,142.79,0.14216157]
[1741325762912,82.0,142.84,142.78,0.17516157]
[1741325763088,82.0,142.84,142.83,0.14216157]
[1741325763810,89.0008,142.84,142.8,0.14216157]
[1741325764000,82.0,142.84,142.8,0.14216157]
[1741325764698,89.0009,142.84,142.8,0.14216157]
[1741325765614,89.0009,142.84,142.79,0.14216157]
[1741325766390,89.0009,142.84,142.8,0.14216157]
[1741325766585,89.0009,142.84,142.8,312.14216157]
[1741325770725,13.5587,142.82,142.78,0.033]
[1741325770899,1.46952173,142.81,142.78,0.033]
[1741325771097,83.46952173,142.81,142.78,0.033]
[1741325771813,0.14216157,142.79,142.78,0.033]
[1741325771990,1.6116833,142.79,142.78,0.033]
[1741325773918,8.6148833,142.79,142.78,0.033]
[1741325775912,74.6148833,142.79,142.78,0.033]
[1741325779112,67.46952173,142.79,142.78,0.033]
[1741325779420,74.6148833,142.79,142.78,0.033]
[1741325781120,74.6448833,142.79,142.78,0.033]
[1741325781923,8.6448833,142.79,142.78,0.033]
[1741325782723,8.50272173,142.79,142.78,0.033]
[1741325782905,8.6448833,142.79,142.78,0.033]
[1741325783707,0.03,142.79,142.78,0.033]
[1741325784325,7.17536157,142.79,142.78,0.033]
[1741325784701,8.6448833,142.79,142.78,0.033]
[1741325786926,1.49952173,142.79,142.78,0.033]
[1741325787128,0.03,142.79,142.78,0.033]
[1741325787297,7.0014,142.83,142.78,0.033]
[1741325787697,1.6116833,142.82,142.78,0.033]
[1741325788198,8.47142173,142.82,142.78,0.033]
[1741325788404,67.46952173,142.84,142.78,0.033]
[1741325788601,73.0003,142.85,142.79,0.14216157]
[1741325788816,7.0003,142.85,142.79,0.14216157]
[1741325789327,0.14216157,142.84,142.78,0.17516157]
[1741325789530,1.6116833,142.84,142.78,0.17516157]
[1741325789745,21.05002173,142.86,142.78,0.17516157]
[1741325789948,28.05002173,142.86,142.81,312.0]
[1741325790255,0.14216157,142.84,142.82,0.14216157]
[1741325790427,8.6124833,142.84,142.82,0.14216157]
[1741325791552,0.14216157,142.84,142.82,0.14216157]
[1741325791746,82.0,142.85,142.82,0.14216157]
[1741325792166,82.0,142.85,142.82,7.14386157]
[1741325792835,0.03,142.87,142.82,7.14386157]
[1741325793858,8.6412833,142.87,142.79,0.14216157]
[1741325794158,8.6412833,142.87,142.79,22.49423131]
[1741325794332,0.03,142.87,142.81,0.14216157]
[1741325794536,7.0294,142.87,142.81,0.14216157]
[1741325794843,8.49892173,142.87,142.81,0.14216157]
[1741325795529,33.4700012,142.86,142.81,0.14216157]
[1741325795830,8.49892173,142.87,142.84,0.14216157]
[1741325796153,82.0,142.86,142.84,0.14216157]
[1741325796656,7.0003,142.85,142.81,0.14216157]
[1741325797355,133.19199779,142.86,142.81,0.14216157]
[1741325797549,89.0,142.86,142.81,0.14216157]
[1741325797755,90.46952173,142.86,142.81,0.14216157]
[1741325798152,0.14216157,142.85,142.79,0.14216157]
[1741325798669,22.76719779,142.84,142.79,0.14216157]
[1741325798844,22.76719779,142.84,142.8,0.14216157]
[1741325799153,89.14266157,142.85,142.8,0.14216157]
[1741325799363,89.14266157,142.85,142.82,0.14216157]
[1741325799553,18.04319779,142.84,142.82,0.14216157]
[1741325799748,89.14266157,142.85,142.82,0.14216157]
[1741325802561,89.14266157,142.85,142.8,0.14216157]
[1741325802861,82.0,142.84,142.8,0.14216157]
[1741325803063,82.0,142.84,142.79,0.14216157]
[1741325804353,89.0012,142.84,142.79,7.14536157]
[1741325804667,89.0012,142.84,142.78,7.17866157]
[1741325804856,82.0,142.83,142.78,7.17866157]
[1741325805465,82.0,142.83,142.81,0.14216157]
[1741325805944,89.0017,142.83,142.81,0.14216157]
[1741325807561,89.0017,142.83,142.78,0.033]
[1741325808966,89.0017,142.83,142.8,0.14216157]
[1741325809462,89.0017,142.83,142.78,0.17516157]
[1741325810242,89.0017,142.83,142.79,0.14216157]
[1741325811651,89.0017,142.83,142.78,0.033]
[1741325812380,83.6116833,142.82,142.78,0.033]
[1741325813374,7.0023,142.81,142.78,0.033]
[1741325815355,7.0023,142.81,142.79,0.14216157]
[1741325816688,7.0309,142.84,142.79,7.14536157]
[1741325816852,0.03,142.84,142.79,25.65454844]
[1741325817176,0.03,142.84,142.79,11.33856157]
[1741325817485,7.0309,142.84,142.79,11.33856157]
[1741325817978,0.03,142.84,142.79,11.33856157]
[1741325818578,0.03,142.84,142.79,25.65454844]
[1741325819476,0.03,142.84,142.79,43.16274844]
[1741325819788,0.03,142.84,142.81,312.14216157]
[1741325820359,0.03,142.84,142.81,0.14216157]
[1741325820978,0.03,142.84,142.81,7.14436157]
[1741325821179,0.03,142.84,142.81,0.14216157]
[1741325821483,0.03,142.84,142.81,7.14416157]
[1741325822587,0.03,142.84,142.81,0.14216157]
[1741325823170,0.03,142.84,142.81,312.14216157]
[1741325824393,0.03,142.84,142.81,319.14436157]
[1741325824585,0.03,142.84,142.81,312.14216157]
[1741325825295,0.03,142.84,142.81,319.14436157]
[1741325825591,0.03,142.84,142.81,7.14436157]
[1741325826588,0.03,142.84,142.81,29.50016713]
[1741325828393,0.03,142.84,142.83,312.14216157]
[1741325828593,0.03,142.84,142.79,4.1932]
[1741325828890,0.03,142.84,142.8,0.14216157]
[1741325829097,0.03,142.84,142.79,4.1932]
[1741325829796,0.03,142.84,142.8,0.14216157]
[1741325830394,82.03,142.84,142.8,0.14216157]
[1741325830698,83.49952173,142.84,142.78,7.0365]
[1741325830897,82.0,142.83,142.79,0.14216157]
[1741325831697,89.0014,142.83,142.81,0.14216157]
[1741325832090,82.14216157,142.82,142.78,0.033]
[1741325832279,83.46952173,142.81,142.78,0.033]
[1741325833980,7.14496157,142.8,142.78,0.033]
[1741325835008,82.0,142.79,142.78,0.033]
[1741325837623,89.0032,142.79,142.78,0.033]
[1741325838107,82.0,142.79,142.78,0.033]
[1741325841607,89.0032,142.79,142.78,0.033]
[1741325842411,89.0032,142.79,142.78,312.17516157]
[1741325842784,82.0,142.79,142.78,312.17516157]
[1741325843503,89.14536157,142.79,142.78,0.17516157]
[1741325843711,89.14536157,142.79,142.78,0.033]
[1741325847299,7.14536157,142.79,142.78,0.033]
[1741325851420,7.17536157,142.79,142.78,0.033]
[1741325855798,8.53316157,142.78,142.75,312.033]
[1741325856030,0.14216157,142.76,142.75,0.033]
[1741325857400,7.14686157,142.76,142.75,0.033]
[1741325859128,73.14686157,142.76,142.75,0.033]
[1741325861148,66.71547813,142.76,142.75,0.033]
[1741325861424,66.0,142.76,142.75,0.033]
[1741325862020,9.86052173,142.78,142.75,0.033]
[1741325862209,0.03,142.79,142.75,0.033]
[1741325862609,7.0335,142.79,142.75,0.033]
[1741325863430,82.03,142.79,142.75,0.033]
[1741325865146,82.03,142.79,142.78,0.14216157]
[1741325865619,89.0332,142.79,142.75,0.033]
[1741325865818,82.03,142.79,142.76,0.14216157]
[1741325866049,0.03,142.79,142.76,0.14216157]
[1741325866716,0.03,142.79,142.75,0.17516157]
[1741325867122,0.03,142.79,142.75,7.18026157]
[1741325867930,0.03,142.79,142.75,21.49957332]
[1741325868135,0.03,142.79,142.77,0.14216157]
[1741325868614,0.03,142.79,142.78,312.14216157]
[1741325869220,0.03,142.79,142.78,0.14216157]
[1741325875042,0.03,142.79,142.78,7.14586157]
[1741325877254,0.03,142.79,142.78,319.14586157]
[1741325878050,0.03,142.79,142.78,312.14216157]
[1741325879928,0.03,142.79,142.78,319.14586157]
[1741325880129,0.03,142.79,142.78,333.46517332]
[1741325881552,0.03,142.79,142.78,319.14586157]
[1741325881852,0.03,142.79,142.78,312.0]
[1741325882053,0.03,142.79,142.78,319.0037]
[1741325882228,0.03,142.79,142.78,319.14586157]
[1741325884637,0.03,142.79,142.78,312.14216157]
[1741325885143,0.03,142.79,142.78,319.14586157]
[1741325888560,0.03,142.79,142.78,312.14216157]
[1741325888770,0.03,142.79,142.78,337.79551043]
[1741325889055,0.03,142.79,142.78,380.30085002]
[1741325889658,0.03,142.79,142.78,347.33188941]
[1741325891149,0.03,142.79,142.78,365.98153827]
[1741325891381,0.03,142.79,142.78,380.30085002]
[1741325892877,0.03,142.84,142.81,18.933972]
[1741325893077,0.03,142.87,142.84,4.36296157]
[1741325893239,0.03,142.87,142.86,33.11112218]
[1741325893658,0.03,142.87,142.86,0.14216157]
[1741325894247,0.03,142.87,142.86,14.46147332]
[1741325894655,0.03,142.87,142.86,41.12072967]
[1741325894856,0.03,142.87,142.86,48.12052967]
[1741325895369,0.03,142.87,142.86,29.47088081]
[1741325895552,0.03,142.87,142.86,7.14196157]
[1741325895949,0.03,142.87,142.86,341.47088081]
[1741325896149,0.03,142.87,142.86,360.12052967]
[1741325896356,0.03,142.94,142.89,0.14216157]
[1741325896664,89.0261,142.94,142.89,0.14216157]
[1741325897045,1.46952173,142.93,142.87,0.14216157]
[1741325897948,82.03,142.94,142.87,22.47108081]
[1741325898969,82.03,142.94,142.87,0.14216157]
[1741325899176,82.03,142.94,142.89,0.14216157]
[1741325899475,83.46952173,142.93,142.9,312.0]
[1741325899677,83.46952173,142.93,142.84,4.2208]
[1741325899861,82.0,142.92,142.85,0.14216157]
[1741325900078,1.46952173,142.91,142.85,7.14226157]
[1741325900370,1.46952173,142.91,142.85,0.14216157]
[1741325900559,92.07622173,142.91,142.83,35.18722784]
[1741325900964,90.6067,142.91,142.84,22.47108081]
[1741325901265,90.6067,142.91,142.86,0.14216157]
[1741325902085,82.0,142.91,142.86,22.47108081]
[1741325902282,89.0264,142.94,142.86,50.65710865]
[1741325902451,82.03,142.94,142.9,312.0]
[1741325902656,89.026,142.94,142.91,0.14216157]
[1741325902858,1.46952173,142.93,142.91,0.14216157]
[1741325903071,6.9969,142.92,142.87,0.14216157]
[1741325903263,88.9969,142.92,142.87,0.14216157]
[1741325904660,1.46952173,142.91,142.85,0.14216157]
[1741325905279,1.46952173,142.91,142.85,7.14236157]
[1741325906056,1.46952173,142.91,142.88,0.14216157]
[1741325906578,1.46952173,142.91,142.86,7.14186157]
[1741325907082,8.46692173,142.91,142.86,7.14186157]
[1741325907279,8.46692173,142.91,142.85,0.14216157]
[1741325907482,8.46692173,142.91,142.85,7.14226157]
[1741325909483,8.46692173,142.91,142.86,312.0]
[1741325909691,90.46692173,142.91,142.87,0.14216157]
[1741325910190,90.46692173,142.91,142.84,7.14296157]
[1741325910564,90.46692173,142.91,142.86,0.033]
[1741325910888,90.49692173,142.91,142.86,0.033]
[1741325911265,83.49952173,142.91,142.86,0.033]
[1741325911887,82.03,142.91,142.86,0.17516157]
[1741325912060,82.03,142.91,142.88,0.14216157]
[1741325912257,0.03,142.91,142.88,0.14216157]
[1741325912988,0.03,142.91,142.88,312.0]
[1741325913489,0.03,142.91,142.89,0.14216157]
[1741325913863,0.03,142.91,142.87,0.14216157]
[1741325914285,0.03,142.91,142.87,7.14126157]
[1741325914483,0.03,142.91,142.86,0.17516157]
[1741325914893,0.17216157,142.91,142.86,0.033]
[1741325915063,0.17216157,142.91,142.86,0.17516157]
[1741325915461,82.0,142.9,142.86,0.17516157]
[1741325915692,83.46952173,142.9,142.86,0.17516157]
[1741325916498,83.46952173,142.9,142.86,312.17516157]
[1741325916785,6.9983,142.89,142.86,312.17516157]
[1741325917696,82.0,142.9,142.86,21.47030715]
[1741325917899,82.0,142.9,142.88,0.14216157]
[1741325918099,0.03,142.91,142.88,0.14216157]
[1741325918685,0.03,142.91,142.87,0.14216157]
[1741325918886,0.03,142.91,142.87,7.14146157]
[1741325919597,0.03,142.91,142.87,0.14216157]
[1741325919892,0.03,142.91,142.86,0.033]
[1741325920065,0.03,142.91,142.87,0.14216157]
[1741325920782,0.03,142.91,142.9,312.14216157]
[1741325922195,0.03,142.91,142.9,319.14006157]
[1741325923069,0.03,142.91,142.9,7.14006157]
[1741325923400,0.03,142.91,142.9,21.43550715]
[1741325924368,0.03,142.94,142.91,0.14216157]
[1741325924568,0.03,142.94,142.93,33.08725601]
[1741325924987,0.03,142.94,142.93,68.26968385]
[1741325926095,0.03,142.94,142.93,380.26968385]
[1741325926693,0.03,142.94,142.93,388.28277625]
[1741325927479,0.03,142.94,142.93,394.74277625]
[1741325928775,0.03,142.94,142.93,376.09312739]
[1741325929593,0.03,142.94,142.93,353.78458941]
[1741325930482,0.03,142.94,142.93,325.59856157]
[1741325930684,0.03,142.94,142.93,347.90709955]
[1741325932301,0.03,142.94,142.93,325.59856157]
[1741325932875,0.03,142.94,142.93,347.90709955]
[1741325933775,0.03,142.94,142.93,325.59856157]
[1741325934194,0.03,142.94,142.93,312.14216157]
[1741325940587,0.03,142.94,142.91,0.033]
[1741325941975,0.03,142.94,142.91,0.17516157]
[1741325942804,0.03,142.94,142.91,0.033]
[1741325943303,0.03,142.94,142.91,0.17516157]
[1741325943504,0.03,142.94,142.93,0.14216157]
[1741325945513,0.03,142.94,142.91,0.033]
[1741325945686,1.49952173,142.94,142.91,0.033]
[1741325946794,6.9964,142.93,142.91,0.033]
[1741325947306,8.49562173,142.94,142.91,0.033]
[1741325947486,1.49952173,142.94,142.91,0.033]
[1741325948211,83.49952173,142.94,142.91,0.033]
[1741325948396,83.49952173,142.94,142.92,0.14216157]
[1741325948909,90.49542173,142.94,142.92,0.14216157]
[1741325950519,90.49542173,142.94,142.91,0.033]
[1741325950811,83.49952173,142.94,142.91,0.033]
[1741325952311,90.49552173,142.94,142.91,0.033]
[1741325953520,90.49552173,142.94,142.92,0.14216157]
[1741325954721,18.79181043,142.93,142.91,0.033]
[1741325954888,0.14216157,142.91,142.87,0.033]
[1741325955210,6.9983,142.89,142.87,0.033]
[1741325955390,8.46782173,142.89,142.87,0.033]
[1741325956908,101.4599,142.9,142.87,0.033]
[1741325957215,90.6969,142.9,142.87,0.033]
[1741325957707,90.6969,142.9,142.88,0.14216157]
[1741325957910,97.6948,142.9,142.88,0.14216157]
[1741325959713,90.6969,142.9,142.88,0.14216157]
[1741325960696,90.6969,142.9,142.87,0.033]
[1741325960896,90.6969,142.9,142.87,0.17516157]
[1741325962718,97.6949,142.9,142.87,0.033]
[1741325963199,90.6969,142.9,142.87,0.033]
[1741325963409,1.49952173,142.91,142.88,312.14216157]
[1741325963603,0.03,142.91,142.88,312.14216157]
[1741325963796,0.03,142.91,142.88,0.14216157]
[1741325964004,0.03,142.91,142.9,0.14216157]
[1741325966021,0.03,142.91,142.88,0.14216157]
[1741325966194,0.03,142.91,142.9,0.14216157]
[1741325966915,0.03,142.91,142.9,326.43166403]
[1741325968104,0.03,142.91,142.9,333.42956403]
[1741325969702,0.0001,142.91,142.9,333.42956403]
[1741325969904,0.0001,142.91,142.9,380.26524073]
[1741325970105,0.0001,142.91,142.9,380.4074023]
[1741325971418,0.0001,142.94,142.93,4.57856157]
[1741325971617,0.0001,142.94,142.93,47.05409187]
[1741325971818,0.0001,142.94,142.93,54.05049187]
[1741325972707,0.0001,142.94,142.93,72.8423023]
[1741325973908,0.0001,142.94,142.93,239.4423023]
[1741325974516,0.0001,142.94,142.93,551.30014073]
[1741325975413,0.0001,142.94,142.93,518.36098941]
[1741325975622,0.0001,142.94,142.93,518.21882784]
[1741325975816,0.0001,142.94,142.93,518.36098941]
[1741325976439,0.0001,142.94,142.93,532.65049187]
[1741325977534,0.0001,142.94,142.93,518.36098941]
[1741325979044,0.0001,142.94,142.93,351.76098941]
[1741325979246,0.0001,142.94,142.93,319.13856157]
[1741325979426,0.0001,142.94,142.93,312.14216157]
[1741325979821,0.0001,142.94,142.93,312.0]
[1741325980528,0.0001,142.94,142.93,312.14216157]
[1741325983242,0.0001,142.94,142.93,0.14216157]
[1741325983548,1.46962173,142.94,142.88,173.5586]
[1741325983719,83.46962173,142.94,142.88,166.56]
[1741325984044,83.46962173,142.94,142.89,0.14216157]
[1741325984618,6.9964,142.93,142.89,0.14216157]
[1741325984823,1.46952173,142.92,142.9,0.033]
[1741325985741,83.46952173,142.92,142.9,0.033]
[1741325985928,82.14216157,142.91,142.9,0.033]
[1741325986130,66.0,142.92,142.9,0.033]
[1741325986338,1.46952173,142.91,142.9,0.033]
[1741325986840,8.46692173,142.91,142.9,0.033]
[1741325987145,27.25873216,142.91,142.9,0.033]
[1741325987521,42.47973216,142.91,142.9,0.033]
[1741325989649,108.47973216,142.91,142.9,0.033]
[1741325991646,10.23052173,142.91,142.9,0.033]
[1741325991819,8.761,142.91,142.9,0.033]
[1741325993539,1.46952173,142.92,142.9,0.17516157]
[1741325994852,1.46952173,142.92,142.9,312.17516157]
[1741325995259,67.46952173,142.93,142.9,312.17516157]
[1741325995828,149.46952173,142.93,142.9,312.17516157]
[1741325996029,148.0,142.93,142.9,312.17516157]
[1741325998661,0.14216157,142.92,142.9,312.17516157]
[1741325998844,1.6116833,142.92,142.9,0.033]
[1741326000849,8.6085833,142.92,142.9,0.033]
[1741326001659,82.0,142.91,142.9,0.033]
[1741326003785,88.9974,142.91,142.9,0.033]
[1741326004862,82.0,142.91,142.9,0.033]
[1741326007248,88.9974,142.91,142.9,0.033]
[1741326008285,88.9974,142.91,142.9,312.17516157]
[1741326008958,88.9974,142.91,142.9,0.17516157]
[1741326011977,94.2059591,142.94,142.91,0.14216157]
[1741326012285,82.0001,142.94,142.91,0.14216157]
[1741326015302,82.0001,142.94,142.9,7.17276157]
[1741326015483,82.0001,142.94,142.92,0.14216157]
[1741326015694,88.9961,142.94,142.92,0.14216157]
[1741326015878,82.0001,142.94,142.91,0.14216157]
[1741326017789,83.46962173,142.94,142.91,0.14216157]
[1741326019007,83.46962173,142.94,142.93,0.14216157]
[1741326019174,82.0001,142.94,142.93,0.14216157]
[1741326019504,89.13816157,142.94,142.9,0.033]
[1741326019679,8.46632173,142.93,142.9,0.033]
[1741326020801,8.46632173,142.93,142.9,0.17516157]
[1741326021007,1.46952173,142.93,142.9,0.17516157]
[1741326021680,0.0001,142.94,142.93,7.13856157]
[1741326021889,0.0001,142.94,142.93,25.66379777]
[1741326022075,0.0001,142.94,142.93,44.31344663]
[1741326022272,0.03,142.99,142.94,0.14216157]
[1741326022615,0.03,142.99,142.98,0.14216157]
[1741326023518,0.03,142.99,142.98,14.43989777]
[1741326024020,0.03,142.99,142.98,21.43379777]
[1741326024718,0.03,142.99,142.98,7.13606157]
[1741326025297,0.03,142.99,142.98,0.14216157]
[1741326025509,0.03,142.99,142.95,13.4354]
[1741326025907,0.03,142.99,142.96,312.0]
[1741326026413,0.03,142.99,142.97,0.14216157]
[1741326026828,0.03,142.99,142.96,312.0]
[1741326027193,0.03,142.99,142.97,0.14216157]
[1741326028217,82.03,142.99,142.94,0.14216157]
[1741326028722,1.46952173,142.98,142.94,0.14216157]
[1741326029791,1.46952173,142.98,142.92,7.13896157]
[1741326029994,83.49952173,142.99,142.92,29.4340471]
[1741326031017,83.49952173,142.99,142.94,312.0]
[1741326031198,83.49952173,142.99,142.95,0.14216157]
[1741326031398,90.49322173,142.99,142.95,0.14216157]
[1741326032217,90.49322173,142.99,142.93,0.14216157]
[1741326032900,82.14216157,142.98,142.92,0.14216157]
[1741326033210,83.46952173,142.97,142.92,0.14216157]
[1741326033393,82.0,142.96,142.9,166.653]
[1741326033594,83.46952173,142.95,142.9,166.653]
[1741326034011,82.14216157,142.94,142.9,0.033]
[1741326034209,1.46952173,142.93,142.9,0.033]
[1741326034711,6.9969,142.92,142.91,0.14216157]
[1741326034914,88.9969,142.92,142.9,312.033]
[1741326035108,98.1999,142.92,142.9,0.033]
[1741326035415,1.46952173,142.91,142.9,0.033]
[1741326036220,8.46692173,142.91,142.9,0.033]
[1741326037217,34.994,143.01,142.9,0.033]
[1741326037218,82.0,142.95,142.9,0.033]
[1741326037421,1.46952173,142.94,142.9,0.033]
[1741326038019,1.46952173,142.94,142.91,0.14216157]
[1741326038227,82.0,142.95,142.91,7.13906157]